bitfinex-derivatives/quotes_SOLF0:USTF0_20250428
["timestamp","ask_amount","ask_price","bid_price","bid_amount"]
[1745807019316,4.79438058,145.77,145.72,31.29438058]
[1745807019617,4.79438058,145.78,145.73,4.79438058]
[1745807019817,4.79438058,145.78,145.74,4.79438058]
[1745807020117,6.8575,145.77,145.74,4.79438058]
[1745807024822,6.8577,145.76,145.74,4.79438058]
[1745807025021,4.79438058,145.78,145.74,4.79438058]
[1745807025318,6.8574,145.77,145.74,4.79438058]
[1745807026021,6.8577,145.76,145.74,4.79438058]
[1745807026222,4.79438058,145.78,145.74,4.79438058]
[1745807026519,6.8575,145.77,145.74,4.79438058]
[1745807028022,8.64678058,145.8,145.75,4.79438058]
[1745807028223,4.79438058,145.79,145.75,4.79438058]
[1745807028424,6.857,145.78,145.75,4.79438058]
[1745807030027,11.65098058,145.79,145.75,11.65238058]
[1745807030227,6.8566,145.79,145.75,11.65238058]
[1745807030729,6.8566,145.79,145.75,4.79438058]
[1745807031330,6.8568,145.78,145.75,4.79438058]
[1745807031530,6.8568,145.78,145.74,4.79438058]
[1745807032229,3.8524,145.8,145.77,4.79438058]
[1745807032432,1.9307,145.8,145.78,4.79438058]
[1745807033633,1.9307,145.8,145.77,4.79438058]
[1745807034735,8.7865,145.8,145.77,4.79438058]
[1745807036636,6.72508058,145.8,145.72,26.5]
[1745807036833,6.72508058,145.8,145.75,4.79438058]
[1745807037335,6.8565,145.79,145.76,4.79438058]
[1745807037539,1.9307,145.8,145.76,4.79438058]
[1745807037837,8.7869,145.8,145.76,4.79438058]
[1745807038038,1.9307,145.8,145.76,4.79438058]
[1745807038339,6.8564,145.79,145.76,11.65198058]
[1745807038541,1.9307,145.8,145.76,11.65198058]
[1745807039039,6.8563,145.79,145.76,11.65198058]
[1745807039239,1.9307,145.8,145.77,4.79438058]
[1745807040040,8.7868,145.8,145.77,4.79438058]
[1745807040641,1.9899,145.82,145.78,4.79438058]
[1745807040841,26.46,145.84,145.8,4.79438058]
[1745807041841,3.9773,145.87,145.8,4.79438058]
[1745807041842,1.9189,145.87,145.83,4.79438058]
[1745807042140,26.46,145.88,145.84,4.79438058]
[1745807042441,26.46,145.88,145.85,4.79438058]
[1745807042643,70.14396396,145.91,145.87,4.79438058]
[1745807042943,68.19286396,145.91,145.87,4.79438058]
[1745807043237,64.06766396,145.91,145.85,26.46]
[1745807043445,68.86204454,145.91,145.86,6.72428058]
[1745807043646,64.06766396,145.91,145.87,4.79438058]
[1745807043840,64.06766396,145.91,145.88,4.79438058]
[1745807044445,64.06766396,145.91,145.89,4.79438058]
[1745807044646,68.86204454,145.91,145.87,4.79438058]
[1745807044941,4.79438058,145.88,145.8,4.79438058]
[1745807045145,4.79438058,145.85,145.8,4.79438058]
[1745807045339,35.30418058,145.87,145.83,4.79438058]
[1745807045542,8.84418058,145.87,145.83,4.79438058]
[1745807045738,11.64648058,145.88,145.83,4.79438058]
[1745807046150,4.79438058,145.88,145.83,4.79438058]
[1745807046347,26.46,145.9,145.85,4.79438058]
[1745807046544,4.79438058,145.9,145.86,4.79438058]
[1745807046741,6.8519,145.89,145.86,4.79438058]
[1745807046947,11.64628058,145.89,145.85,4.79438058]
[1745807047342,4.79438058,145.89,145.85,4.79438058]
[1745807047544,2.0533,145.93,145.88,4.79438058]
[1745807047740,4.79438058,145.96,145.92,4.79438058]
[1745807047939,4.79438058,145.97,145.93,11.64398058]
[1745807048150,4.79438058,145.96,145.92,4.79438058]
[1745807048453,4.79438058,145.94,145.9,11.64508058]
[1745807048747,4.79438058,145.94,145.89,4.79438058]
[1745807049050,4.79438058,145.94,145.89,11.64558058]
[1745807049547,7.47646102,145.96,145.89,6.8512]
[1745807049852,7.47646102,145.94,145.88,26.46]
[1745807050151,7.47646102,145.92,145.85,529.59406102]
[1745807050751,7.47646102,145.92,145.87,6.8523]
[1745807050945,7.47646102,145.92,145.85,520.04]
[1745807051249,7.47646102,145.9,145.85,26.44]
[1745807051748,7.47646102,145.9,145.82,26.44]
[1745807052146,14.32756102,145.9,145.84,6.8536]
[1745807052348,7.47646102,145.9,145.82,26.44]
[1745807052651,7.47646102,145.9,145.83,7.47646102]
[1745807052850,26.44,145.91,145.83,7.47646102]
[1745807053054,2.1098,145.92,145.85,7.47646102]
[1745807053252,1.9763,145.93,145.85,7.47646102]
[1745807053452,1.9763,145.93,145.89,6.8512]
[1745807054553,7.47646102,145.92,145.86,26.44]
[1745807054746,9.58996102,145.92,145.86,26.44]
[1745807055150,6.8507,145.91,145.85,6.8534]
[1745807055347,6.8507,145.91,145.83,26.44]
[1745807055654,6.8507,145.91,145.86,6.8526]
[1745807056156,14.32756102,145.9,145.86,6.8526]
[1745807056350,7.47646102,145.88,145.83,26.44]
[1745807056860,26.44,145.9,145.84,7.47646102]
[1745807057052,2.1135,145.92,145.84,7.47646102]
[1745807057255,2.1135,145.92,145.89,6.8512]
[1745807057451,9.45276102,145.93,145.84,9.50456102]
[1745807057654,9.45276102,145.93,145.85,2.0934]
[1745807058358,16.30246102,145.93,145.89,6.8512]
[1745807058959,9.45276102,145.93,145.88,6.8519]
[1745807059456,9.45276102,145.93,145.85,2.0934]
[1745807060358,16.30266102,145.93,145.89,6.8515]
[1745807063360,26.44,145.94,145.87,26.42]
[1745807064055,26.44,145.94,145.91,6.8505]
[1745807065058,26.44,145.94,145.9,6.8509]
[1745807065464,40.74436102,145.97,145.93,6.8497]
[1745807065663,33.89646102,145.97,145.88,7.47646102]
[1745807066262,6.8484,145.96,145.92,6.8498]
[1745807066565,33.89646102,145.97,145.92,6.8498]
[1745807067062,40.74466102,145.97,145.92,6.8498]
[1745807069162,40.74466102,145.97,145.93,6.8495]
[1745807069557,40.74466102,145.97,145.88,7.47646102]
[1745807069764,6.8484,145.96,145.91,6.8503]
[1745807070069,26.42,145.97,145.89,7.47646102]
[1745807070361,33.268,145.97,145.89,7.47646102]
[1745807070763,33.268,145.97,145.92,6.8499]
[1745807071062,33.268,145.97,145.89,7.47646102]
[1745807071362,26.42,145.97,145.89,7.47646102]
[1745807071962,2.0515,145.98,145.91,7.47646102]
[1745807072154,2.0515,145.98,145.91,33.87646102]
[1745807072358,2.0515,145.98,145.95,6.8485]
[1745807072558,8.8778,145.99,145.95,6.8485]
[1745807072760,2.0309,145.99,145.91,33.87646102]
[1745807072960,40.72306102,146.0,145.96,6.8479]
[1745807073260,33.87646102,146.03,145.93,7.47646102]
[1745807073463,7.47646102,145.99,145.92,2.0858]
[1745807073659,7.47646102,145.97,145.89,9.43896102]
[1745807073863,7.47646102,145.97,145.89,28.3625]
[1745807074061,7.47646102,145.95,145.89,26.4]
[1745807074664,7.47646102,145.97,145.89,33.87646102]
[1745807074964,6.8479,145.97,145.93,6.8494]
[1745807075460,6.8483,145.96,145.92,6.85]
[1745807075658,5.9352,145.98,145.89,33.87646102]
[1745807075863,7.47646102,145.97,145.89,33.87646102]
[1745807076265,6.8486,145.96,145.91,6.8504]
[1745807076565,7.47646102,145.97,145.91,6.8504]
[1745807076864,6.8491,145.95,145.91,6.8504]
[1745807077461,6.8495,145.94,145.89,33.2511]
[1745807077662,7.47646102,145.95,145.89,26.4]
[1745807078062,33.87646102,145.95,145.86,28.4858]
[1745807078365,33.87646102,145.95,145.87,7.47646102]
[1745807078563,26.4,145.95,145.87,7.47646102]
[1745807078769,5.9352,145.98,145.91,7.47646102]
[1745807079064,7.47646102,146.0,145.91,33.87646102]
[1745807079367,7.47646102,146.0,145.91,26.4]
[1745807079567,6.0769,145.99,145.91,26.4]
[1745807079768,6.8478,145.97,145.91,26.4]
[1745807079969,6.0769,145.99,145.91,26.4]
[1745807080471,6.8477,145.98,145.93,6.8493]
[1745807081069,26.4,145.97,145.91,33.2502]
[1745807081261,26.4,145.97,145.91,26.4]
[1745807081767,6.0769,145.99,145.91,26.4]
[1745807081965,12.9238,145.99,145.91,26.4]
[1745807082169,26.4,146.0,145.97,6.8478]
[1745807082368,33.87646102,146.03,145.97,6.8478]
[1745807082568,6.8463,146.01,145.97,6.8478]
[1745807082764,6.8463,146.01,145.96,6.8481]
[1745807082968,33.87646102,146.03,145.94,7.47646102]
[1745807083270,6.8468,146.0,145.94,7.47646102]
[1745807083571,26.4,146.03,145.96,7.47646102]
[1745807083770,13.61626102,146.05,145.96,7.47646102]
[1745807084170,6.1398,146.05,145.98,7.47646102]
[1745807084370,4.0368,146.05,145.98,7.47646102]
[1745807084775,11.51326102,146.05,145.96,1.9361]
[1745807085178,6.8467,146.0,145.95,33.2486]
[1745807085375,7.47646102,146.01,145.95,26.4]
[1745807086078,26.4,146.02,145.95,26.4]
[1745807086279,7.47646102,146.01,145.95,26.4]
[1745807086577,6.8465,146.0,145.95,33.2484]
[1745807086778,26.4,146.05,145.95,33.87646102]
[1745807086978,7.47646102,146.04,145.95,33.87646102]
[1745807087278,6.8459,146.02,145.96,6.8479]
[1745807087479,7.47646102,146.02,145.95,26.4]
[1745807087678,7.47646102,146.0,145.95,26.4]
[1745807087875,7.47646102,146.0,145.92,1.9843]
[1745807088081,13.82746102,146.0,145.91,33.87646102]
[1745807088279,6.8476,145.98,145.91,33.87646102]
[1745807088581,13.82746102,146.0,145.91,33.87646102]
[1745807088776,6.847,145.99,145.94,6.8489]
[1745807089276,6.847,145.99,145.95,6.8486]
[1745807089582,20.67406102,146.0,145.95,6.8486]
[1745807090179,6.8469,145.99,145.95,6.8486]
[1745807090682,6.8469,145.99,145.94,6.8491]
[1745807090982,7.47646102,145.98,145.91,28.396]
[1745807091184,7.47646102,145.98,145.92,6.8499]
[1745807091376,6.8482,145.97,145.92,6.8499]
[1745807091882,6.8482,145.97,145.93,6.8496]
[1745807092777,6.8483,145.96,145.92,6.85]
[1745807093282,7.47646102,145.98,145.91,28.396]
[1745807094083,6.8484,145.96,145.92,6.8498]
[1745807095182,6.8484,145.96,145.93,6.8496]
[1745807095784,6.8484,145.96,145.92,6.85]
[1745807095985,6.8489,145.95,145.92,6.85]
[1745807097280,6.8492,145.94,145.91,33.2504]
[1745807097485,7.47646102,145.96,145.88,26.38]
[1745807097877,6.8495,145.94,145.9,6.8508]
[1745807098080,6.8495,145.94,145.88,26.38]
[1745807098680,7.47646102,145.96,145.88,26.38]
[1745807099183,6.85,145.93,145.89,6.8513]
[1745807099382,6.85,145.93,145.88,26.38]
[1745807099884,6.85,145.93,145.89,6.8514]
[1745807100182,7.47646102,145.96,145.88,26.38]
[1745807100482,7.47646102,145.94,145.88,26.38]
[1745807100681,6.8514,145.9,145.85,26.38]
[1745807100882,7.47646102,145.92,145.85,26.38]
[1745807102285,7.47646102,145.9,145.85,26.38]
[1745807102489,7.47646102,145.9,145.82,26.38]
[1745807102682,7.47646102,145.9,145.84,6.8538]
[1745807102987,7.47646102,145.88,145.82,26.38]
[1745807103183,7.47646102,145.88,145.79,7.47646102]
[1745807103682,7.47646102,145.86,145.8,6.8557]
[1745807103891,7.47646102,145.86,145.78,26.38]
[1745807104385,6.8537,145.85,145.8,6.8555]
[1745807104787,11.50056102,145.88,145.79,7.47646102]
[1745807105085,6.8529,145.87,145.82,6.8544]
[1745807105587,10.8765,145.88,145.81,7.47646102]
[1745807106479,10.8765,145.88,145.84,6.8538]
[1745807108591,4.0241,145.88,145.81,7.47646102]
[1745807108790,11.50056102,145.88,145.79,7.47646102]
[1745807109188,7.47646102,145.86,145.79,6.8561]
[1745807109390,7.47646102,145.86,145.78,26.38]
[1745807109790,6.8536,145.85,145.8,6.8558]
[1745807110589,6.8536,145.85,145.81,6.8552]
[1745807110890,6.8536,145.85,145.78,26.38]
[1745807111186,6.8536,145.85,145.8,6.8555]
[1745807112191,6.8536,145.85,145.81,6.8551]
[1745807112391,6.8536,145.85,145.78,26.38]
[1745807112785,6.8536,145.85,145.8,6.8557]
[1745807112989,6.8536,145.85,145.78,26.38]
[1745807113490,6.8536,145.85,145.8,6.8557]
[1745807113693,7.47646102,145.84,145.78,26.38]
[1745807113992,9.47396102,145.84,145.78,26.38]
[1745807114892,7.47646102,145.82,145.78,26.38]
[1745807115192,7.47646102,145.82,145.74,33.85646102]
[1745807115491,6.8555,145.81,145.76,6.8574]
[1745807116994,6.8558,145.8,145.76,6.8574]
[1745807118296,6.8558,145.8,145.77,6.8572]
[1745807118495,6.8558,145.8,145.74,33.85646102]
[1745807118994,6.8558,145.8,145.76,6.8574]
[1745807121196,6.8558,145.8,145.77,6.8572]
[1745807121694,6.8558,145.8,145.76,6.8575]
[1745807124698,7.47646102,145.8,145.74,33.2382]
[1745807125597,6.857,145.78,145.74,33.2382]
[1745807126203,6.857,145.78,145.75,6.858]
[1745807127705,6.8564,145.79,145.75,6.858]
[1745807128707,6.8568,145.78,145.75,6.858]
[1745807129102,6.8568,145.78,145.74,6.8586]
[1745807129599,11.65183566,145.78,145.74,11.65363566]
[1745807130305,11.65223566,145.77,145.73,11.65393566]
[1745807131509,11.65223566,145.77,145.74,6.8585]
[1745807131708,11.65283566,145.76,145.72,4.79503566]
[1745807132004,4.79503566,145.76,145.72,11.65453566]
[1745807132307,4.79503566,145.75,145.72,6.8595]
[1745807132703,4.79503566,145.75,145.71,26.38]
[1745807132910,4.79503566,145.74,145.7,4.79503566]
[1745807133210,4.79503566,145.74,145.68,30.3352]
[1745807133509,4.79503566,145.74,145.7,4.79503566]
[1745807134207,4.79503566,145.75,145.71,4.79503566]
[1745807134405,31.17503566,145.77,145.73,4.79503566]
[1745807134807,26.38,145.77,145.73,4.79503566]
[1745807135110,26.38,145.77,145.74,4.79503566]
[1745807135909,2.0003,145.82,145.76,4.79503566]
[1745807136114,2.0003,145.82,145.79,4.79503566]
[1745807136410,6.8558,145.8,145.77,4.79503566]
[1745807137511,6.8558,145.8,145.74,7.48970103]
[1745807137714,6.8555,145.81,145.74,7.48970103]
[1745807138312,6.8555,145.81,145.76,6.8573]
[1745807138613,6.8559,145.8,145.76,6.8573]
[1745807140413,14.34520103,145.81,145.77,6.8571]
[1745807140913,14.34520103,145.81,145.73,2.0025]
[1745807140914,7.48970103,145.81,145.73,2.0025]
[1745807141411,6.8561,145.8,145.76,6.8575]
[1745807146816,6.8555,145.81,145.76,7.48970103]
[1745807147114,35.86020103,145.83,145.76,33.86970103]
[1745807147323,6.8551,145.82,145.78,6.8566]
[1745807147715,28.3705,145.83,145.76,33.86970103]
[1745807147921,26.38,145.83,145.8,6.8553]
[1745807148218,8.8516,145.84,145.78,7.48970103]
[1745807148621,8.8516,145.84,145.8,6.8555]
[1745807153421,8.8516,145.84,145.78,7.48970103]
[1745807153422,1.9975,145.84,145.81,6.8553]
[1745807153722,14.34330103,145.85,145.81,6.8553]
[1745807155525,6.8539,145.84,145.81,6.8553]
[1745807156225,6.8539,145.84,145.8,6.8556]
[1745807157526,4.79201684,145.83,145.8,6.8556]
[1745807158129,4.79201684,145.83,145.81,6.8553]
[1745807159627,4.79201684,145.83,145.8,6.8556]
[1745807160730,4.79201684,145.81,145.79,6.8561]
[1745807160928,4.79201684,145.8,145.76,31.17201684]
[1745807161227,4.79201684,145.79,145.77,6.8569]
[1745807161527,4.79201684,145.79,145.76,26.38]
[1745807161732,4.79201684,145.8,145.78,6.8567]
[1745807165030,4.79201684,145.79,145.76,26.38]
[1745807165232,4.79201684,145.78,145.76,26.38]
[1745807165549,26.34,145.82,145.76,26.38]
[1745807165729,26.34,145.82,145.76,31.17201684]
[1745807165931,4.79201684,145.81,145.77,4.79201684]
[1745807166131,4.79201684,145.83,145.79,4.79201684]
[1745807166431,4.79201684,145.83,145.78,4.79201684]
[1745807166728,4.79201684,145.83,145.8,6.8556]
[1745807166935,4.79201684,145.84,145.8,4.79201684]
[1745807167330,4.79201684,145.84,145.81,6.8552]
[1745807168235,4.79201684,145.84,145.82,6.8548]
[1745807170037,6.8534,145.86,145.82,6.8548]
[1745807170334,4.79201684,145.84,145.82,6.8548]
[1745807171335,4.79201684,145.84,145.8,4.79201684]
[1745807171630,4.79201684,145.84,145.79,4.79201684]
[1745807172236,6.8535,145.85,145.82,6.8548]
[1745807172433,4.79201684,145.87,145.83,4.79201684]
[1745807172634,4.79201684,145.87,145.84,4.79201684]
[1745807173137,4.79201684,145.87,145.85,6.8534]
[1745807173335,6.8516,145.89,145.83,31.13201684]
[1745807173336,4.79201684,145.86,145.83,26.34]
[1745807173639,26.34,145.91,145.84,6.8539]
[1745807173837,4.79201684,145.86,145.84,6.8539]
[1745807174537,4.79201684,145.87,145.84,6.8539]
[1745807175137,4.79201684,145.86,145.84,6.8539]
[1745807176331,4.79201684,145.86,145.83,26.34]
[1745807176332,4.79201684,145.86,145.83,33.1942]
[1745807176638,4.79201684,145.86,145.83,26.34]
[1745807177144,7.18291564,145.94,145.84,4.79201684]
[1745807177343,391.34,145.99,145.88,4.79201684]
[1745807177537,4.79201684,145.94,145.9,4.79201684]
[1745807177738,4.79201684,145.95,145.9,4.79201684]
[1745807178341,4.79201684,145.95,145.92,6.8498]
[1745807178635,4.79201684,145.95,145.9,4.79201684]
[1745807178842,4.79201684,145.96,145.91,4.79201684]
[1745807179542,4.79201684,145.96,145.93,6.8493]
[1745807180141,4.79201684,145.96,145.92,6.85]
[1745807180342,4.79201684,145.96,145.91,4.79201684]
[1745807181042,4.79201684,145.96,145.92,6.85]
[1745807181241,4.79201684,145.95,145.92,6.85]
[1745807181744,4.79201684,145.94,145.91,6.8505]
[1745807182047,4.79201684,145.94,145.9,4.79201684]
[1745807182241,4.79201684,145.95,145.9,4.79201684]
[1745807182546,4.79201684,145.95,145.91,4.79201684]
[1745807183149,4.79201684,145.96,145.92,6.8498]
[1745807183345,4.79201684,145.95,145.91,4.79201684]
[1745807183549,4.79201684,145.93,145.9,6.851]
[1745807183746,4.79201684,145.93,145.88,26.34]
[1745807183947,4.79201684,145.94,145.9,4.79201684]
[1745807184848,4.79201684,145.94,145.91,6.8502]
[1745807185049,4.79201684,145.94,145.9,4.79201684]
[1745807185351,4.79201684,145.92,145.88,31.13201684]
[1745807185650,4.79201684,145.91,145.88,37.98401684]
[1745807186150,4.79201684,145.92,145.88,31.13201684]
[1745807187252,4.79201684,145.92,145.89,6.8515]
[1745807187450,11.64171684,145.93,145.89,6.8515]
[1745807187850,11.64171684,145.93,145.88,31.13201684]
[1745807187851,11.64171684,145.93,145.88,37.98391684]
[1745807188051,4.79201684,145.89,145.82,4.79201684]
[1745807188247,4.79201684,145.85,145.81,6.80941684]
[1745807188446,4.79201684,145.85,145.83,6.8543]
[1745807188642,4.79201684,145.86,145.83,6.8543]
[1745807189046,4.79201684,145.84,145.8,26.3]
[1745807189248,4.79201684,145.86,145.81,4.79201684]
[1745807189551,4.79201684,145.86,145.83,6.8544]
[1745807190650,4.79201684,145.85,145.8,31.09201684]
[1745807190949,4.79201684,145.85,145.81,6.8552]
[1745807191152,4.79201684,145.84,145.8,26.3]
[1745807191452,4.0737,145.88,145.8,31.09201684]
[1745807191651,4.79201684,145.85,145.81,6.8549]
[1745807191851,4.79201684,145.85,145.8,31.09201684]
[1745807192051,4.79201684,145.86,145.83,4.79201684]
[1745807192251,4.79201684,145.86,145.83,11.64601684]
[1745807192752,4.79201684,145.86,145.84,6.8538]
[1745807192947,4.79201684,145.87,145.84,6.8538]
[1745807193653,6.88611684,145.88,145.85,6.8534]
[1745807193846,6.88611684,145.88,145.83,4.79201684]
[1745807195254,13.73821684,145.88,145.84,6.8536]
[1745807195450,13.73821684,145.88,145.83,4.79201684]
[1745807195451,31.09201684,145.89,145.85,4.79201684]
[1745807195657,4.79201684,145.9,145.86,4.79201684]
[1745807196257,4.79201684,145.9,145.87,6.8524]
[1745807197658,4.79201684,145.9,145.86,11.64491684]
[1745807197856,4.79201684,145.9,145.85,4.79201684]
[1745807198356,4.79201684,145.89,145.85,4.79201684]
[1745807198557,28.342,145.92,145.87,4.79201684]
[1745807198753,6.83401684,145.92,145.87,4.79201684]
[1745807199658,13.68421684,145.92,145.87,4.79201684]
[1745807199856,4.79201684,145.91,145.87,4.79201684]
[1745807200256,4.79201684,145.91,145.89,6.8514]
[1745807203361,6.83401684,145.92,145.89,6.8514]
[1745807203659,4.79201684,145.92,145.9,6.851]
[1745807203957,31.09201684,145.95,145.91,4.79201684]
[1745807204262,4.79201684,145.94,145.9,4.79201684]
[1745807204758,4.79201684,145.94,145.91,6.8503]
[1745807206864,31.09201684,145.95,145.92,6.85]
[1745807207362,31.09201684,145.95,145.91,6.8504]
[1745807208162,4.79201684,145.94,145.91,6.8504]
[1745807208364,4.79201684,145.94,145.9,11.64291684]
[1745807208565,4.79201684,145.94,145.89,4.79201684]
[1745807210070,4.79201684,145.93,145.88,31.09201684]
[1745807210365,11.64121684,145.94,145.89,4.79201684]
[1745807210664,4.79201684,145.94,145.91,6.8503]
[1745807211764,31.09201684,145.95,145.92,6.8501]
[1745807213666,26.3,145.95,145.94,6.8492]
[1745807213863,26.3,145.95,145.92,4.79201684]
[1745807214064,26.3,145.95,145.91,4.79201684]
[1745807214568,26.3,145.95,145.93,6.8496]
[1745807214769,4.79201684,145.96,145.91,4.79201684]
[1745807215570,4.79201684,145.97,145.92,4.79201684]
[1745807216068,4.79201684,145.99,145.95,4.79201684]
[1745807216263,4.79201684,145.99,145.96,6.8479]
[1745807216461,31.63871684,146.0,145.95,4.79201684]
[1745807216664,20.0,146.0,145.97,4.79201684]
[1745807216964,24.79201684,146.0,145.96,4.79201684]
[1745807217160,20.0,146.0,145.97,11.63961684]
[1745807217369,24.79201684,146.0,145.97,11.63961684]
[1745807217568,4.79201684,145.99,145.95,4.79201684]
[1745807217765,4.79201684,145.99,145.94,4.79201684]
[1745807217970,11.63921684,145.99,145.95,6.8486]
[1745807218572,4.79201684,145.98,145.94,11.64101684]
[1745807218766,4.79201684,145.96,145.94,6.849]
[1745807219072,4.79201684,145.96,145.92,31.07201684]
[1745807219572,4.79201684,145.96,145.92,26.28]
[1745807220071,4.79201684,145.96,145.93,6.8496]
[1745807220868,4.79201684,145.96,145.92,26.28]
[1745807221076,4.79201684,145.96,145.94,6.8492]
[1745807222376,4.79201684,145.96,145.93,11.64151684]
[1745807222575,4.79201684,145.96,145.93,6.8495]
[1745807223076,11.63981684,145.97,145.94,6.8492]
[1745807223276,6.8483,145.96,145.92,31.07201684]
[1745807223477,11.64031684,145.96,145.92,26.28]
[1745807223777,4.79201684,145.95,145.92,33.1301]
[1745807224275,4.79201684,145.93,145.89,37.92341684]
[1745807225577,4.79201684,145.93,145.89,11.64341684]
[1745807225772,4.79201684,145.93,145.9,6.851]
[1745807226076,4.79201684,145.93,145.89,4.79201684]
[1745807226379,1.9661,145.96,145.91,4.79201684]
[1745807226577,31.07201684,145.97,145.93,4.79201684]
[1745807226778,4.79201684,145.98,145.94,11.64121684]
[1745807227075,11.63961684,145.98,145.94,4.79201684]
[1745807227377,11.63961684,145.98,145.94,11.64111684]
[1745807227674,4.79201684,145.98,145.94,6.8491]
[1745807227880,4.79201684,145.96,145.93,6.8494]
[1745807228077,4.79201684,145.96,145.92,4.79201684]
[1745807228280,4.79201684,145.97,145.93,4.79201684]
[1745807228880,4.79201684,145.98,145.93,4.79201684]
[1745807229880,11.63961684,145.98,145.94,6.849]
[1745807230077,4.79201684,145.97,145.94,6.849]
[1745807230478,11.64011684,145.97,145.93,6.8495]
[1745807230779,4.79201684,145.95,145.91,26.28]
[1745807230980,11.64081684,145.95,145.91,26.28]
[1745807231982,11.64121684,145.94,145.89,4.79201684]
[1745807232382,4.79201684,145.93,145.89,4.79201684]
[1745807232582,4.79201684,145.94,145.89,4.79201684]
[1745807232985,6.8488,145.95,145.9,4.79201684]
[1745807233278,11.64081684,145.95,145.9,4.79201684]
[1745807234388,11.64081684,145.95,145.91,6.8503]
[1745807235388,33.1285,145.96,145.92,6.85]
[1745807235587,37.92051684,145.96,145.92,6.85]
[1745807235885,6.8488,145.95,145.91,11.64241684]
[1745807236189,11.64081684,145.95,145.91,11.64241684]
[1745807236392,11.64081684,145.95,145.91,6.8504]
[1745807237389,31.07201684,145.96,145.92,4.79201684]
[1745807237889,31.07201684,145.96,145.93,6.8494]
[1745807238391,31.07201684,145.96,145.94,6.8492]
[1745807238689,11.64011684,145.97,145.94,6.8492]
[1745807240391,4.79201684,145.95,145.91,4.79201684]
[1745807240591,4.79201684,145.94,145.9,4.79201684]
[1745807240991,4.79201684,145.94,145.92,6.8501]
[1745807241785,4.79201684,145.94,145.91,6.8504]
[1745807243391,11.64091684,145.95,145.91,6.8504]
[1745807244190,4.79201684,145.95,145.92,6.8501]
[1745807244395,11.64041684,145.96,145.92,6.8501]
[1745807244595,4.79201684,145.96,145.92,6.8501]
[1745807245097,4.79201684,145.97,145.93,4.79201684]
[1745807245399,6.90371684,145.98,145.94,4.79201684]
[1745807245694,31.07201684,145.99,145.95,4.79201684]
[1745807246100,31.07201684,145.99,145.96,6.8479]
[1745807246397,4.79201684,145.99,145.96,6.8479]
[1745807247297,11.63891684,145.99,145.96,6.8479]
[1745807247898,11.63931684,145.98,145.95,6.8486]
[1745807248295,11.63931684,145.98,145.94,4.79201684]
[1745807248792,11.63931684,145.98,145.94,11.64091684]
[1745807249298,11.64011684,145.97,145.94,6.8489]
[1745807249597,4.79201684,145.95,145.92,26.24]
[1745807249795,4.79201684,145.94,145.9,4.79201684]
[1745807249994,4.79201684,145.94,145.91,6.8503]
[1745807250395,11.64151684,145.94,145.9,4.79201684]
[1745807250601,4.79201684,145.94,145.9,11.64281684]
[1745807250801,4.79201684,145.94,145.9,4.79201684]
[1745807251500,7.4755023,145.97,145.89,26.24]
[1745807251700,6.8495,145.94,145.89,26.24]
[1745807252200,6.8495,145.94,145.91,6.8505]
[1745807253303,6.8498,145.93,145.9,6.8509]
[1745807253600,7.4755023,145.95,145.89,26.24]
[1745807254395,6.85,145.93,145.89,26.24]
[1745807254701,7.4755023,145.95,145.89,26.24]
[1745807255103,6.85,145.93,145.89,33.0913]
[1745807255401,6.85,145.93,145.89,26.24]
[1745807255801,6.85,145.93,145.89,33.0914]
[1745807256902,6.85,145.93,145.9,6.8509]
[1745807257103,6.851,145.91,145.85,4.1845]
[1745807257304,7.4755023,145.93,145.86,26.24]
[1745807257501,7.4755023,145.93,145.88,6.8517]
[1745807257702,6.8504,145.92,145.86,26.24]
[1745807257905,6.8504,145.92,145.89,6.8515]
[1745807259507,6.8504,145.92,145.88,6.8519]
[1745807260613,7.4755023,145.91,145.86,26.24]
[1745807260803,7.4755023,145.91,145.83,527.0955023]
[1745807261205,7.4755023,145.93,145.85,7.4755023]
[1745807261703,14.3255023,145.93,145.89,6.8513]
[1745807262007,7.4755023,145.93,145.89,6.8513]
[1745807262908,14.3253023,145.93,145.89,6.8513]
[1745807263107,6.8498,145.93,145.89,6.8513]